Cogmind - Beta 9.2 @@@ ROGUE MODE // 2019.12.04 @ 22:13:52 Player: Andru7428 Result: Destroyed by S-10 Pest with Light Assault Rifle Performance ------------- Evolutions (0) 0 Regions Visited (2) 400 Robots Destroyed (14) 70 Value Destroyed (234) 234 Prototype IDs (2) 40 Alien Tech Used (0) 0 Bonus (0) 0 TOTAL SCORE: 744 Bonus ------- None Cogmind --------- Core Integrity 0/250 Matter 300/300 Energy 99/100 System Corruption 0% Temperature Cool (0) Movement Rolling (90) Location -10/Mines Parts ------- > --- POWER (1) -------- (None) > --- PROPULSION (2) --- Armored Wheel > --- UTILITY (2) ------ Medium Storage Unit Visual Processing Unit > --- WEAPON (2) ------- (None) > --- INVENTORY (8) ---- Light Ion Engine Armored Wheel Armored Wheel Small Storage Unit Light Assault Rifle EMP Blaster EMP Blaster Mining Laser Peak State ------------ > --- POWER ------------ Light Nuclear Core > --- PROPULSION ------- Armored Wheel Armored Wheel > --- UTILITY ---------- Small Storage Unit Visual Processing Unit > --- WEAPON ----------- EM Pulse Gun Assault Rifle > --- INVENTORY -------- Armored Wheel Armored Wheel Medium Storage Unit Light Assault Rifle EMP Blaster EMP Blaster [Rating: 13] Favorites ----------- Power Light Nuclear Core Engine Ion Engine Power Core Light Nuclear Core Propulsion Aluminum Leg Leg Aluminum Leg Wheel Armored Wheel Utility Small Storage Unit Storage Small Storage Unit Processor Visual Processing Unit Weapon Assault Rifle Energy Gun EM Pulse Gun Ballistic Gun Assault Rifle Build | -11 -10 -10 ------- Run | Scr Mat Min Slots Evolved . | . . . Power . | . . . Propulsion . | . . . Utility . | . . . Weapon . | . . . Parts Attached 14 | 7 7 . Power 2 | 1 1 . Engine 1 | 1 . . Core 1 | . 1 . Reactor . | . . . Propulsion 5 | 2 3 . Treads . | . . . Leg 3 | 2 1 . Wheel 2 | . 2 . Hover . | . . . Flight . | . . . Utility 4 | 1 3 . Device . | . . . Storage 3 | 1 2 . Processor 1 | . 1 . Hackware . | . . . Protection . | . . . Artifact . | . . . Weapon 3 | 3 . . Energy Gun 1 | 1 . . Energy Cannon . | . . . Ballistic Gun 2 | 2 . . Ballistic Cannon . | . . . Launcher . | . . . Special Weapon . | . . . Impact Weapon . | . . . Slashing Weapon . | . . . Piercing Weapon . | . . . Special Melee Weapon . | . . . Unidentified Prototypes . | . . . Parts Lost 5 | . 1 4 Power 2 | . 1 1 Propulsion 1 | . . 1 Utility . | . . . Weapon 2 | . . 2 Highest Loss Streak 4 | . 1 4 Average Slot Usage (%) 86 | . 85 88 Engine 5 | . 5 . Core 6 | . 6 14 Leg 18 | . 19 . Wheel 9 | . 8 28 Storage 14 | . 14 14 Processor 3 | . 3 14 Energy Gun 13 | . 14 3 Ballistic Gun 14 | . 14 14 Naked Turns . | . . . Heaviest Build 17 | 13 17 17 Greatest Support 24 | 20 24 24 Greatest Overweight (x) 2 | 2 1 1 Average Overweight (x) . | . . . Largest Inventory Capacity 10 | 6 10 8 Average Capacity 6 | 5 6 8 Most Carried 8 | 6 8 8 Average Carried 5 | 3 5 8 Final Capacity 8 | 6 8 8 Final Carried 8 | 4 8 8 Class Distribution -------------------- 100% | Mutant Dominant Class ---------------- Mutant | -10/Materials Mutant | -10/Mines Resources | -11 -10 -10 ----------- Run | Scr Mat Min Matter Collected 442 | 249 193 . Remotely . | . . . Salvage Created 409 | . 409 . Parts 27 | . 27 . Haulers Intercepted . | . . . Recyclers Shooed 1 | . 1 . Parts Field Recycled . | . . . Retrieved Matter . | . . . Parts Self-Destructed . | . . . Prevented . | . . . Kills | -11 -10 -10 ------- Run | Scr Mat Min Combat Hostiles Destroyed 9 | . 9 . Guns 9 | . 9 . Classes Destroyed 5 | . 5 . Builder 1 | . 1 . Recycler 2 | . 2 . Watcher 2 | . 2 . Swarmer 6 | . 6 . Grunt 3 | . 3 . Best Kill Streak 5 | . 5 . Combat Bots Only 4 | . 4 . Max Kills in Single Turn 1 | . 1 . Gunslinging . | . . . Exploded . | . . . Melee . | . . . Uniques/NPCs Destroyed . | . . . Combat | -11 -10 -10 -------- Run | Scr Mat Min Damage Taken 883 | . 379 504 Core 254 | . 77 177 Absorbed by Shields . | . . . Core Remaining (%) 100 | 100 . . Volleys Fired 35 | . 35 . Largest 2 | . 2 . Hottest 60 | . 60 . Shots Fired 70 | . 70 . Gun 70 | . 70 . Cannon . | . . . Launcher . | . . . Special . | . . . Kinetic 35 | . 35 . Thermal . | . . . Explosive . | . . . Electromagnetic 35 | . 35 . Robot Hit Streak 14 | . 14 . Robot Miss Streak 3 | . 3 . Penetration Max . | . . . Secondary Targets 1 | . 1 . Max Gunslinging Chain 1 | . 1 . Shots Hit Robots 41 | . 41 . Core Hits 17 | . 17 . Critical Hits 1 | . 1 . Critical Kills 1 | . 1 . Critical Parts Destroyed . | . . . Melee Attacks . | . . . Impact . | . . . Slashing . | . . . Piercing . | . . . Sneak Attacks . | . . . Combat Hostiles . | . . . Follow-up Attacks . | . . . Damage Inflicted 646 | . 646 . Guns 465 | . 465 . Cannons . | . . . Explosions 181 | . 181 . Melee . | . . . Ramming . | . . . Kinetic 162 | . 162 . Thermal 181 | . 181 . Explosive . | . . . Electromagnetic 303 | . 303 . Impact . | . . . Slashing . | . . . Piercing . | . . . Highest Corruption . | . . . Average Corruption . | . . . Corruption Purged . | . . . Overload Shots . | . . . Overflow Damage . | . . . Projectiles . | . . . Explosions . | . . . Melee . | . . . Knockbacks . | . . . Impact . | . . . Kinetic . | . . . Secondary . | . . . Self-Inflicted Damage 34 | . 34 . Shots 1 | . 1 . Rammed . | . . . Targets Rammed . | . . . Kicked . | . . . Crushed . | . . . Highest Temperature 54 | . 54 . Average Temperature 24 | . 24 . Received Heat Transfer 93 | . 93 . Siege Activations . | . . . Robots Corrupted . | . . . Combat Hostiles . | . . . Parts Fried 1 | . 1 . Impact Corruptions . | . . . Robots Melted . | . . . Combat Hostiles . | . . . Parts Melted . | . . . Heat Transferred 300 | . 300 . Parts Sabotaged . | . . . Parts Stolen . | . . . Parts Stripped . | . . . Power Chain Reactions 3 | . 3 . Missiles Intercepted . | . . . Alert | -11 -10 -10 ------- Run | Scr Mat Min Peak Influence 287 | . 287 53 Average Influence 117 | . 137 39 Maximum Alert Level 1 | . 1 . Low Security (%) 73 | 100 68 100 Level 1 26 | . 31 . Level 2 . | . . . Level 3 . | . . . Level 4 . | . . . Level 5 . | . . . High Security . | . . . Max Security . | . . . Squads Dispatched 1 | . 1 . Investigation . | . . . Extermination . | . . . Reinforcement 1 | . 1 . Assault . | . . . Garrison . | . . . Intercept . | . . . Construction Impeded . | . . . Haulers Reinforced . | . . . Stealth | -11 -10 -10 --------- Run | Scr Mat Min Distress Signals 1 | . 1 . Communications Jammed . | . . . Distress Signals . | . . . Times Spotted 39 | . 19 20 Peak Tracking Total 22 | . 3 22 Tactical Retreats 3 | . 3 . Traps | -11 -10 -10 ------- Run | Scr Mat Min Traps Triggered . | . . . Indirectly . | . . . Trap Hack Attempts . | . . . Triggered . | . . . Disarmed . | . . . Reprogrammed . | . . . Reused . | . . . Traps Extracted . | . . . Installed . | . . . Triggered . | . . . Machines | -11 -10 -10 ---------- Run | Scr Mat Min Machines Disabled 1 | . 1 . Max in Single Turn 1 | . 1 . Machines Sabotaged . | . . . Garrisons Compromised . | . . . Overloaded Fab Kills . | . . . Fab Network Shutdowns . | . . . Hacking | -11 -10 -10 --------- Run | Scr Mat Min Machines Accessed 4 | . 4 . Terminals 3 | . 3 . Fabricators . | . . . Repair Stations . | . . . Recycling Units 1 | . 1 . Scanalyzers . | . . . Garrison Access . | . . . Total Hacks 7 | . 7 . Successful 4 | . 4 . Failed 3 | . 3 . Catastrophic 1 | . 1 . Database Lockouts . | . . . Manual 3 | . 3 . Terminals 5 | . 5 . Fabricators . | . . . Repair Stations . | . . . Recycling Units 2 | . 2 . Scanalyzers . | . . . Garrison Access . | . . . Terminal Hacks 2 | . 2 . Prototype ID Bank 1 | . 1 . Locate Traps 1 | . 1 . Fabricator Hacks . | . . . Repair Station Hacks . | . . . Recycling Unit Hacks 2 | . 2 . Retrieve Matter 1 | . 1 . Retrieve Components 1 | . 1 . Scanalyzer . | . . . Garrison Access Hacks . | . . . Unauthorized Hacks . | . . . Terminals . | . . . Fabricators . | . . . Repair Stations . | . . . Recycling Units . | . . . Scanalyzers . | . . . Garrison Access . | . . . Data Cores Recovered . | . . . Used . | . . . Hacking Detections 3 | . 3 . Full Trace Events . | . . . Feedback Events . | . . . Feedback Blocked . | . . . Robot Schematics Acquired . | . . . Robots Built . | . . . Matter . | . . . Time . | . . . Total Robot Build Rating . | . . . Part Schematics Acquired . | . . . Parts Built . | . . . Matter . | . . . Time . | . . . Total Part Build Rating . | . . . Parts Repaired . | . . . Time . | . . . Parts Recycled . | . . . Recycled Matter . | . . . Retrieved Matter . | . . . Retrieved Components . | . . . Parts Scanalyzed . | . . . Part Schematics Acquired . | . . . Parts Damaged . | . . . Bothacking | -11 -10 -10 ------------ Run | Scr Mat Min Used RIF Installer . | . . . Robots Hacked . | . . . Non-combat . | . . . Combat . | . . . Robot Hacks Applied . | . . . Relay Couplers Released . | . . . Robots Rewired . | . . . Allies Hacked . | . . . Hacks Repelled . | . . . Allies | -11 -10 -10 -------- Run | Scr Mat Min Total Allies . | . . . Largest Group . | . . . Highest-Rated Group . | . . . Highest-Rated Ally . | . . . Total Orders . | . . . Ally Attacks . | . . . Total Damage . | . . . Kills . | . . . Allies Corrupted . | . . . Allies Melted . | . . . Intel | -11 -10 -10 ------- Run | Scr Mat Min Robot Analysis Total . | . . . Derelict Logs Recovered . | . . . Drone Launches . | . . . Drone Recoveries . | . . . Exploration | -11 -10 -10 ------------- Run | Scr Mat Min Turns Passed 666 | 70 557 39 Spaces Moved 429 | 49 337 43 Core 16 | 16 . . Treads . | . . . Legs 215 | 33 182 . Wheels 198 | . 155 43 Hover . | . . . Flight . | . . . Fastest Speed 50 | 50 90 90 Average Speed 105 | 109 106 90 Slowest Speed 150 | 150 120 100 Overloaded Moves . | . . . Propulsion Burnouts . | . . . Robots Hopped . | . . . Cave-ins Triggered . | . . . Exploration Rate (%) 24 | 3 47 22 Regions Visited 2 Branch Regions 1 Pre-discovered Areas . | . . . Known Exits Taken . | . . . Unknown Exits Taken 2 | 1 1 . Scrap Searched . | . . . Spaces Dug . | . . . Terrain Destroyed 10 | . 10 . Melee . | . . . Projectile . | . . . AOE 10 | . 10 . Actions | -11 -10 -10 --------- Run | Scr Mat Min Total 576 | 65 468 43 Wait 71 | . 71 . Move 427 | 48 336 43 Hop . | . . . Pick Up 20 | 10 10 . Fast Attach 3 | . 3 . Attach 8 | 6 2 . Detach 1 | . 1 . Swap 3 | 1 2 . Drop 8 | . 8 . Fire 35 | . 35 . Melee . | . . . Ram . | . . . Kick . | . . . Crush . | . . . Escape Stasis . | . . . Rewire . | . . . Trap . | . . . Miscellaneous . | . . . Route ------- -11/Scrapyard -10/Materials (discovered 2 exits: [*Mat] / [*Min]) -10/Mines (discovered 1 exit: [*Mat]) History --------- Turn | Location | Event 14 | -11/Scrapyard | Discovered new exit (range 16) 71 | -11/Scrapyard | Entered Materials 303 | -10/Materials | Build established: Mutant 429 | -10/Materials | Discovered new exit (range 16) 526 | -10/Materials | Discovered new exit (range 13) 628 | -10/Materials | Entered Mines 629 | -10/Mines | Assembled infested the area 657 | -10/Mines | Discovered new exit (range 8) 659 | -10/Mines | Core integrity fell below 50% 667 | -10/Mines | Core integrity fell below 20% 667 | -10/Mines | Destroyed by S-10 Pest with Light Assault Rifle Last Messages --------------- 00526_ EXIT=FOUND 00526_ K-01 Serf collects debris. 00564_ U-05 Engineer lays Concrete. 00581_ Connecting with Terminal... 00624_ Acquired Mining Laser. LOCATION=UNKNOWN GOAL=ESCAPE Something is scanning the area. 00629_ ALERT: Infestation in the mines, dispatching Demolisher response squad. 00633_ EM Pulse Gun destroyed. [Achievement: Hunted] 00640_ C-30 ARC bursts open, deploying its payload. 00640_ D-53 Grenadier unfolds itself. 00646_ as-66664 powers down. 00646_ as-47267 powers down. 00657_ EXIT=FOUND 00659_ The unstable cave ceiling collapses. 00661_ Arm. Wheel destroyed. 00664_ Assault Rifle destroyed. 00665_ Lgt. Nuclear Core destroyed. Map ----- +----------------------------------------------------+ | ?????????????????????????????????????? | | ?????????????????????????????????????? | | ?????????????????????????????????????? | | ?????????????????????????????????????? | | ?????????????????????????????????????? | | ?????????????????????????????????????? | | ?????????????????????????????????????? | | ?????????????????????????????????????? | | ?????????????????????????????????????? | | ?????????????????????????????????????? | | ?????????????????????????????????????? | | ?????????????????????????????????????? | | ????????????????#????????????????????? | | ????????????????# ???????????????????? | | ????????????????# ##?????????????????? | | ????????????????# #????????????????? | | ????????????????? #???????????????? | | ?????????????????? #??????????????? | | ????????????????### ??????????#???? | | ????????????????? ##??????? ????? | | ??????????????????# ######$?????? | | ??????????????????# ??????? | | ???????????????????? ???????? | | ????????????#####????# #????????? | | ???????????## ?????# ##???????? | | ???????????# ????## @ #???????? | | ???????????# ????# #??????? | | ????????????# ???# #?##???? | | ?????????????# ##?# ## ##??? | | ????????????## #### # #??? | | ???????????## ## ##?? | | ???????# ### #?? | | ???????# #?? | | ??????????### d d #?? | | ?????###????##### ## s #?? | | ##""## ##???????# ## # s #?? | | X #??????## ## ## #?? | | #???#### # ### s ##?? | | #?### # ### # # #??? | | #?# "%" # ### #??? | | #?# ##### ##T##???#??? | | ??# ### #???# ?# ???????? | | ??# ## ######???# ?# ???????? | | ??# ##?????????# ?# < ??????? | | ### ## ##??????????# ?# ??????? | | ####????????????# ?# ??????? | | #### ##???????????????# ??###??????? | | ???## #????????????????? ???????????? | | ????# #???????????????? ???????????? | | ????# ???????????????????????????? | +----------------------------------------------------+ Best States ------------- Heat Dissipation 25 Energy Generation 14 Energy Capacity 250 Matter Stores 300 Matter Capacity 300 Sight Range 18 Terrain Scan Density 10 Evasion (%) 42 Item Schematics ----------------- None Robot Schematics ------------------ None Fabricated ------------ Nothing Alien Tech Used ----------------- None Achievements -------------- Hunted Challenges ------------ None Game ------ Seed LargeMasterBay Manual? 0 Play Time 00:14:18 Cumulative 14.9 hours Start 2019.12.04 @ 21:33:14 End 2019.12.04 @ 22:13:52 Sessions 1 Manual Loads 0 Difficulty Rogue Special Mode None Game No. 22 Rogue 22 Adventurer 0 Explorer 0 Win Type - Total 0 Types 0/0/0/0/0/0/0 Lore% 9 Gallery% 19 Achievement% 10 Wizard Run 0 Options --------- ASCII 0 Keyboard 0 Movement Mouse Keybinds 0 Fullscreen 1 Font 12/Smallcaps Map View 83x54 Tactical HUD 1 Map Filters NONE Filters NONE Steam 1 RUN: 0c4471c4-f6b3-4da8-886e-1292473670cc